bitfinex-derivatives/quotes_ETHF0:USTF0_20240822
["timestamp","ask_amount","ask_price","bid_price","bid_amount"]
[1724298119496,1.1891,2610.7,2610.5,5.1495]
[1724298119701,0.22975,2610.6,2610.5,5.1495]
[1724298120596,0.22975,2610.6,2610.5,2.6687]
[1724298120899,0.22977,2610.4,2610.3,0.00940138]
[1724298122103,0.22977,2610.4,2610.3,1.38940138]
[1724298125892,0.22976,2610.5,2610.3,1.38940138]
[1724298126702,0.22977,2610.4,2610.3,0.00940138]
[1724298127400,1.60977,2610.4,2610.3,0.00940138]
[1724298127591,5.49097,2610.4,2610.3,0.00940138]
[1724298127990,8.03957,2610.4,2610.3,0.00940138]
[1724298132805,8.06088934,2610.4,2610.3,0.00940138]
[1724298134505,8.03957,2610.4,2610.3,0.00940138]
[1724298134809,8.06089057,2610.4,2610.3,0.00940138]
[1724298135209,0.22979,2610.1,2609.8,5.1659]
[1724298135409,1.2075,2610.0,2609.8,5.1659]
[1724298136102,1.4373,2610.0,2609.8,2.51885095]
[1724298136296,1.2075,2610.0,2609.8,3.89885095]
[1724298136710,1.43731,2610.0,2609.8,3.89885095]
[1724298136908,2.65961,2610.0,2609.8,3.89885095]
[1724298137614,2.4298,2610.0,2609.8,3.89885095]
[1724298137808,2.6596,2610.0,2609.8,3.89885095]
[1724298138110,0.22981,2609.9,2609.8,3.89885095]
[1724298138311,3.8748,2610.0,2609.8,3.89885095]
[1724298139007,1.6098,2610.1,2609.8,3.89885095]
[1724298139515,1.6098,2610.1,2609.9,1.38]
[1724298140415,0.2298,2610.1,2609.9,1.38]
[1724298140714,4.59353987,2610.2,2610.1,0.22979]
[1724298140715,3.21353987,2610.2,2610.1,0.22979]
[1724298140907,0.00573987,2610.2,2610.1,5.44099]
[1724298141213,0.00573987,2610.2,2610.1,11.64299]
[1724298142309,4.81753,2610.8,2610.1,11.4132]
[1724298142310,3.2078,2610.8,2610.1,11.4132]
[1724298142509,3.6178,2610.8,2610.6,1.38]
[1724298142812,3.6178,2610.8,2610.7,3.6618]
[1724298144418,3.2078,2610.8,2610.7,3.6618]
[1724298146517,2.80802,2610.9,2610.7,3.6618]
[1724298146724,3.2078,2610.8,2610.7,3.6618]
[1724298148929,2.80802,2610.9,2610.7,3.6618]
[1724298150516,0.22973,2610.8,2610.7,3.6618]
[1724298150721,1.60973,2610.8,2610.7,3.6618]
[1724298152326,1.38,2610.8,2610.7,3.6618]
[1724298153124,2.80802,2610.9,2610.7,3.6618]
[1724298153725,0.22973,2610.8,2610.7,3.6618]
[1724298154232,0.00573987,2611.0,2610.7,8.8722]
[1724298154530,0.00573987,2611.0,2610.8,1.38]
[1724298154531,1.30523987,2611.0,2610.8,1.38]
[1724298154729,1.53494987,2611.0,2610.8,1.38]
[1724298154931,1.30523987,2611.0,2610.8,1.38]
[1724298155131,1.53494987,2611.0,2610.8,1.38]
[1724298155324,1.30523987,2611.0,2610.8,1.38]
[1724298157731,1.30523987,2611.0,2610.7,5.0418]
[1724298157932,0.22973,2610.9,2610.7,3.6618]
[1724298158130,1.30523987,2611.0,2610.7,1.2529]
[1724298158131,1.38,2610.8,2610.7,1.2529]
[1724298159323,1.60973,2610.9,2610.7,1.2529]
[1724298159524,1.60973,2610.9,2610.7,2.6329]
[1724298159838,2.91495987,2611.0,2610.7,2.6329]
[1724298160332,1.30523987,2611.0,2610.8,1.38]
[1724298160729,0.00573987,2611.0,2610.9,3.7963]
[1724298161435,0.00573987,2611.0,2610.9,2.4163]
[1724298161633,1.29323987,2611.0,2610.9,2.4163]
[1724298161933,4.50103987,2611.0,2610.9,2.4163]
[1724298162321,1.29323987,2611.0,2610.9,2.4163]
[1724298162523,4.50103987,2611.0,2610.9,2.4163]
[1724298169838,4.73074987,2611.0,2610.7,1.2529]
[1724298170039,5.90234987,2611.0,2610.7,1.2529]
[1724298171739,2.69454987,2611.0,2610.7,1.2529]
[1724298171939,5.90234987,2611.0,2610.7,1.2529]
[1724298172241,5.67263987,2611.0,2610.7,1.2529]
[1724298172937,5.90234987,2611.0,2610.7,1.2529]
[1724298174332,0.00573987,2611.0,2610.8,3.8304]
[1724298174636,0.00573987,2611.0,2610.9,2.5848]
[1724298174829,0.00573987,2611.0,2610.9,6.4152]
[1724298180828,0.00573987,2611.0,2610.7,4.4607]
[1724298181026,0.23544987,2611.0,2610.8,1.2075]
[1724298181226,0.00573987,2611.0,2610.8,1.2075]
[1724298181434,1.19943987,2611.0,2610.8,1.2075]
[1724298182435,1.19943987,2611.0,2610.9,1.379]
[1724298183038,0.00573987,2611.0,2610.9,10.43912]
[1724298183346,1.2427,2611.5,2610.9,10.2094]
[1724298183645,1.21229134,2611.7,2611.4,1.379]
[1724298183843,1.21229134,2611.7,2611.6,1.379]
[1724298183844,0.00449134,2611.7,2611.6,1.379]
[1724298185537,1.21019134,2611.7,2611.6,1.379]
[1724298190753,0.00449134,2611.7,2611.6,1.379]
[1724298191147,0.00449134,2611.7,2611.6,5.43746]
[1724298193645,0.00449134,2611.7,2611.6,13.64526]
[1724298193848,0.00573987,2611.9,2611.8,0.22964]
[1724298194050,0.00573987,2611.9,2611.8,5.43744]
[1724298194555,1.179,2612.4,2612.0,0.22962]
[1724298194755,1.179,2612.4,2612.2,1.379]
[1724298195057,1.18346906,2612.4,2612.2,1.379]
[1724298204762,1.41305906,2612.4,2612.2,1.379]
[1724298205968,1.18346906,2612.4,2612.2,1.379]
[1724298207564,1.41305906,2612.4,2612.2,1.379]
[1724298207759,1.41305906,2612.4,2612.1,3.7689]
[1724298207760,0.22962,2612.1,2612.0,0.00326201]
[1724298207954,4.81642,2612.1,2612.0,0.00326201]
[1724298208151,0.02126823,2612.1,2612.0,1.38226201]
[1724298209066,1.2358,2612.2,2612.0,5.21106201]
[1724298209365,1.18346906,2612.4,2612.1,1.379]
[1724298209563,0.02125983,2612.3,2612.1,1.379]
[1724298210267,0.02126194,2612.2,2612.1,1.379]
[1724298210760,0.02126194,2612.3,2612.1,1.379]
[1724298211068,0.02126194,2612.2,2612.1,1.379]
[1724298211467,1.18346906,2612.4,2612.1,1.379]
[1724298211657,1.18346906,2612.4,2612.3,1.379]
[1724298211859,1.20472891,2612.4,2612.3,1.379]
[1724298214464,1.2047305,2612.4,2612.3,1.379]
[1724298214766,1.4343205,2612.4,2612.3,1.379]
[1724298215364,1.41305906,2612.4,2612.3,1.379]
[1724298215768,1.41305906,2612.4,2612.1,1.379]
[1724298216172,0.2296,2612.3,2612.1,1.379]
[1724298216363,0.22961,2612.2,2612.1,1.379]
[1724298220864,0.2296,2612.3,2612.1,1.379]
[1724298221068,0.22961,2612.2,2612.1,1.379]
[1724298221658,0.22961,2612.2,2612.0,1.38226201]
[1724298222276,0.22961,2612.2,2612.1,1.379]
[1724298222469,0.2296,2612.3,2612.1,1.379]
[1724298223474,2.79206906,2612.4,2612.1,1.379]
[1724298223673,2.79206906,2612.4,2612.3,1.379]
[1724298223674,1.61346906,2612.4,2612.3,1.379]
[1724298224679,1.84305906,2612.4,2612.3,1.379]
[1724298226768,0.2296,2612.3,2612.2,1.379]
[1724298226967,0.22962,2612.1,2612.0,0.00326201]
[1724298227367,0.22962,2612.1,2612.0,1.38226201]
[1724298228781,5.43742,2612.1,2612.0,0.00326201]
[1724298229082,8.64522,2612.1,2612.0,0.00326201]
[1724298229284,5.57742,2612.1,2612.0,0.00326201]
[1724298229585,7.96852,2612.1,2612.0,0.00326201]
[1724298230777,1.2122,2612.1,2612.0,1.38226201]
[1724298231582,0.2296,2612.3,2612.0,1.38226201]
[1724298231780,0.6496,2612.3,2612.2,1.379]
[1724298232082,0.2296,2612.3,2612.2,1.379]
[1724298232879,0.2296,2612.3,2612.1,1.379]
[1724298233979,0.22961,2612.2,2612.1,1.379]
[1724298234687,0.22962,2612.1,2612.0,1.38226201]
[1724298234879,1.43742,2612.1,2612.0,1.38226201]
[1724298237284,10.66707,2612.1,2612.0,0.00326201]
[1724298237578,0.57409,2611.9,2611.4,0.00573987]
[1724298237779,5.39065,2611.5,2611.4,0.00573987]
[1724298237976,7.96193537,2611.5,2611.4,0.00573987]
[1724298238179,11.79153537,2611.5,2611.4,0.00573987]
[1724298238575,13.01533537,2611.5,2611.4,0.00966107]
[1724298240282,0.22971,2611.0,2610.9,3.2078]
[1724298240876,0.22971,2611.0,2610.8,1.2676]
[1724298240877,0.22972,2610.9,2610.8,1.2676]
[1724298241381,0.22972,2611.0,2610.8,1.27208735]
[1724298241582,1.46182,2611.0,2610.8,1.27208735]
[1724298242283,1.2321,2611.0,2610.8,1.27208735]
[1724298242990,1.46181,2611.0,2610.8,1.27208735]
[1724298243383,0.00573987,2611.1,2610.8,8.41348735]
[1724298243581,0.00573987,2611.1,2610.9,2.4768]
[1724298244279,0.00573987,2611.1,2610.9,1.2385]
[1724298244482,2.45673987,2611.1,2610.9,1.2385]
[1724298244786,0.22972,2611.0,2610.8,1.27208735]
[1724298244978,2.45673987,2611.1,2610.8,1.27208735]
[1724298244979,2.68644987,2611.1,2610.8,1.27208735]
[1724298245980,4.00134987,2611.1,2610.8,1.27208735]
[1724298247690,3.77163987,2611.1,2610.8,1.27208735]
[1724298247878,4.00134987,2611.1,2610.8,1.27208735]
[1724298248186,3.77163987,2611.1,2610.8,1.27208735]
[1724298248977,4.00134987,2611.1,2610.8,1.27208735]
[1724298249991,3.77163987,2611.1,2610.8,1.27208735]
[1724298250191,0.22972,2610.9,2610.8,0.00448735]
[1724298251277,4.06012,2610.9,2610.8,0.00448735]
[1724298253188,0.22972,2610.9,2610.8,0.00448735]
[1724298253388,3.43752,2611.0,2610.8,0.00448735]
[1724298254984,0.22972,2611.0,2610.8,0.00448735]
[1724298256390,0.22972,2610.9,2610.8,0.00448735]
[1724298257798,1.21343987,2611.1,2610.8,0.00448735]
[1724298258003,1.44313987,2611.1,2610.8,0.00448735]
[1724298260600,0.00573987,2611.1,2610.8,0.00448735]
[1724298260799,0.00573987,2611.1,2610.8,2.53808735]
[1724298262493,0.00573987,2611.1,2610.9,1.379]
[1724298263689,0.23543987,2611.1,2610.9,1.379]
[1724298268006,0.00573987,2611.1,2610.9,1.379]
[1724298268706,0.23543987,2611.1,2610.9,1.379]
[1724298269700,1.379,2611.0,2610.8,1.25058735]
[1724298269901,1.60872,2611.0,2610.8,1.25058735]
[1724298270101,1.61444987,2611.1,2610.9,1.2773]
[1724298270500,0.22971,2611.0,2610.9,1.2773]
[1724298272115,1.38473987,2611.1,2610.9,2.6563]
[1724298272412,0.23543987,2611.1,2610.9,2.6563]
[1724298273705,0.00573987,2611.1,2610.9,2.6563]
[1724298273907,0.23543987,2611.1,2610.9,2.6563]
[1724298274104,0.00573987,2611.1,2610.9,2.6563]
[1724298274908,0.00573987,2611.1,2610.9,6.4859]
[1724298275109,0.00573987,2611.1,2611.0,1.379]
[1724298275510,0.00573987,2611.1,2611.0,5.2086]
[1724298282724,0.00573987,2611.1,2611.0,3.8296]
[1724298285224,1.38473987,2611.1,2610.8,0.00448735]
[1724298285434,1.60872,2610.9,2610.8,0.00448735]
[1724298285724,4.92303,2610.9,2610.8,0.00448735]
[1724298285921,13.76974237,2610.9,2610.8,0.00448735]
[1724298286127,0.22977,2610.4,2610.1,1.1916]
[1724298286431,1.379,2610.2,2610.1,1.1916]
[1724298286818,1.379,2610.2,2610.1,5.0228]
[1724298287128,1.38315118,2610.2,2610.1,5.0267629]
[1724298287424,0.00415118,2610.2,2610.1,5.0267629]
[1724298287724,1.38315118,2610.2,2610.1,0.0039629]
[1724298288226,1.61293118,2610.2,2610.1,0.0039629]
[1724298288825,0.23393118,2610.2,2610.1,0.0039629]
[1724298289227,2.24739118,2610.2,2610.1,0.0039629]
[1724298289639,6.07859118,2610.2,2610.1,0.0039629]
[1724298289927,0.2298,2610.0,2609.9,0.00573987]
[1724298290231,1.6088,2610.0,2609.9,0.00573987]
[1724298291020,1.6088,2610.0,2609.9,0.01052236]
[1724298291539,1.379,2610.0,2609.9,0.01052236]
[1724298293632,1.379,2610.1,2609.9,0.01052236]
[1724298294029,1.379,2610.1,2609.9,1.38952236]
[1724298294727,1.379,2610.1,2609.9,0.01052236]
[1724298296024,3.44174118,2610.2,2609.9,1.38952236]
[1724298296238,3.21195118,2610.2,2609.9,1.38952236]
[1724298296425,3.21195118,2610.2,2610.1,1.379]
[1724298297430,3.44173118,2610.2,2610.0,1.2255]
[1724298297624,1.379,2610.1,2609.9,0.01052236]
[1724298299630,4.82073118,2610.2,2609.9,0.01052236]
[1724298299833,4.59095118,2610.2,2609.9,0.01052236]
[1724298300030,4.82073118,2610.2,2609.9,1.38952236]
[1724298300335,4.59095118,2610.2,2609.9,1.38952236]
[1724298300533,4.82074118,2610.2,2609.9,1.38952236]
[1724298301636,1.61294118,2610.2,2609.9,1.38952236]
[1724298302425,1.61294118,2610.2,2609.9,0.01052236]
[1724298303238,1.61294118,2610.2,2609.9,1.38952236]
[1724298304029,0.2298,2610.0,2609.9,0.01052236]
[1724298306441,1.6088,2610.1,2609.9,0.01052236]
[1724298310033,0.2298,2610.0,2609.9,0.01052236]
[1724298310342,1.6088,2610.0,2609.9,0.01052236]
[1724298311234,1.8588,2610.0,2609.9,0.01052236]
[1724298311845,11.28583997,2610.0,2609.9,0.01052236]
[1724298312432,11.05603997,2610.0,2609.2,2.5955]
[1724298312638,1.379,2609.4,2609.2,2.5955]
[1724298312836,1.379,2609.4,2609.2,1.2165]
[1724298312837,1.247,2609.3,2609.2,1.2165]
[1724298313537,1.247,2609.3,2609.2,1.22087795]
[1724298314842,1.60885,2609.4,2609.2,1.22087795]
[1724298315046,1.60885,2609.4,2609.2,2.59987795]
[1724298315746,0.22986,2609.3,2609.2,2.59987795]
[1724298316245,1.60886,2609.3,2609.2,0.00437795]
[1724298318643,2.91006,2609.4,2609.2,0.00437795]
[1724298318849,2.6802,2609.4,2609.2,1.38337795]
[1724298320035,2.91005,2609.4,2609.2,1.38337795]
[1724298320243,1.379,2609.3,2609.2,0.00437795]
[1724298320446,1.60886,2609.3,2609.2,0.00437795]
[1724298320646,0.22986,2609.3,2609.2,0.00437795]
[1724298321150,5.888,2609.4,2609.2,0.00437795]
[1724298321151,6.11786,2609.4,2609.2,0.00437795]
[1724298322248,1.379,2609.3,2609.2,0.00437795]
[1724298322551,1.60886,2609.3,2609.2,0.00437795]
[1724298323147,2.67886,2609.3,2609.2,0.00437795]
[1724298323558,6.51166,2609.3,2609.2,0.00437795]
[1724298325046,7.08632,2609.3,2609.2,0.00437795]
[1724298325344,0.80458,2609.1,2609.0,0.00573987]
[1724298325547,0.22994,2608.4,2608.2,2.4656]
[1724298325743,1.60895,2608.3,2608.2,1.228]
[1724298326351,1.38251275,2608.3,2608.2,0.00440738]
[1724298326544,0.00351275,2608.3,2608.2,0.00440738]
[1724298327343,0.00351275,2608.3,2608.2,1.29000738]
[1724298328551,0.00351275,2608.3,2608.2,1.51996738]
[1724298328752,0.00351275,2608.3,2608.2,1.29000738]
[1724298330654,0.00351275,2608.3,2608.2,0.00440738]
[1724298331248,1.23821275,2608.3,2608.2,0.00440738]
[1724298332162,1.46816275,2608.3,2608.2,0.00440738]
[1724298337762,0.00351275,2608.3,2608.2,0.00440738]
[1724298338061,4.089,2608.9,2608.5,0.22993]
[1724298338359,4.089,2608.9,2608.6,1.2207]
[1724298338563,4.089,2608.9,2608.7,1.2227]
[1724298339155,4.09196321,2608.9,2608.7,1.2227]
[1724298339662,4.32186321,2608.9,2608.7,1.2227]
[1724298340059,0.22991,2608.8,2608.6,1.2207]
[1724298340860,0.22993,2608.5,2608.3,1.2227]
[1724298341167,5.7081,2608.7,2608.2,1.30110738]
[1724298341366,0.22994,2608.5,2608.2,1.30110738]
[1724298341565,0.22994,2608.4,2608.2,2.51890738]
[1724298342271,0.22994,2608.5,2608.2,2.51890738]
[1724298342458,0.22994,2608.5,2608.2,1.30110738]
[1724298345065,1.2603,2608.6,2608.2,1.30110738]
[1724298345066,1.49023,2608.6,2608.2,1.30110738]
[1724298346863,0.22993,2608.5,2608.2,1.30110738]
[1724298347064,0.22993,2608.5,2608.2,0.00440738]
[1724298347259,0.27993,2608.5,2608.2,0.00440738]
[1724298348063,3.48773,2608.5,2608.2,0.00440738]
[1724298349463,3.2578,2608.5,2608.2,0.00440738]
[1724298349965,1.2603,2608.6,2608.2,0.00440738]
[1724298350762,4.09196321,2608.9,2608.2,0.00440738]
[1724298350965,4.09196321,2608.9,2608.3,0.22994]
[1724298350966,6.90926321,2608.9,2608.3,0.22994]
[1724298351163,6.90926321,2608.9,2608.4,2.5175]
[1724298351369,1.3034,2608.8,2608.4,2.5175]
[1724298351583,3.3633,2608.8,2608.4,2.5175]
[1724298351767,0.85,2608.8,2608.5,1.1988]
[1724298351972,0.85,2608.8,2608.5,1.42873]
[1724298352275,5.29926321,2608.9,2608.5,1.42873]
[1724298352471,5.30926321,2608.9,2608.5,1.1988]
[1724298352667,1.22026321,2608.9,2608.4,3.2078]
[1724298352868,1.22026321,2608.9,2608.2,0.00440738]
[1724298353075,1.22026321,2608.9,2608.3,0.22994]
[1724298356161,1.22026321,2608.9,2608.4,3.43773]
[1724298356362,0.00296321,2608.9,2608.5,3.95893]
[1724298356575,0.00296321,2608.9,2608.5,3.729]
[1724298356771,0.00296321,2608.9,2608.6,0.22992]
[1724298357167,0.00296321,2608.9,2608.6,4.06352]
[1724298357476,0.00296321,2608.9,2608.6,3.8336]
[1724298357678,0.00296321,2608.9,2608.5,3.729]
[1724298357864,0.00296321,2608.9,2608.7,0.22991]
[1724298358061,0.00296321,2608.9,2608.8,3.43771]
[1724298358372,0.00296321,2608.9,2608.8,7.27051]
[1724298358573,0.00296321,2608.9,2608.8,12.27051]
[1724298359163,0.00296321,2608.9,2608.8,7.27051]
[1724298359765,0.00296321,2608.9,2608.8,12.27051]
[1724298360267,0.00296321,2608.9,2608.8,7.0406]
[1724298360465,0.00296321,2608.9,2608.8,12.27051]
[1724298360981,0.00573987,2609.5,2609.1,0.22987]
[1724298361169,0.00573987,2609.5,2609.2,1.43107]
[1724298361479,0.00573987,2609.5,2608.8,4.186]
[1724298361480,0.22989,2609.1,2608.8,3.2078]
[1724298361667,3.07004,2609.4,2608.9,1.2366]
[1724298361861,0.22989,2609.1,2608.9,1.2366]
[1724298362069,0.23430064,2609.1,2608.9,1.2366]
[1724298362260,0.23430064,2609.1,2608.9,5.0694]
[1724298362466,0.00442064,2609.1,2608.7,1.2012]
[1724298362671,1.5152,2609.0,2608.7,2.4378]
[1724298362880,0.22991,2608.8,2608.7,2.4378]
[1724298363175,0.22991,2608.8,2608.7,1.2366]
[1724298363980,0.2299,2608.9,2608.7,1.2366]
[1724298367088,2.73749,2609.0,2608.7,1.2366]
[1724298368178,1.2853,2609.0,2608.7,2.65671]
[1724298368477,0.00442064,2609.1,2608.8,0.2299]
[1724298368781,0.00442064,2609.1,2608.8,3.2078]
[1724298368978,0.00442064,2609.1,2609.0,0.22989]
[1724298369486,0.00442064,2609.1,2609.0,4.06269]
[1724298369983,0.00442064,2609.1,2609.0,3.8328]
[1724298370478,0.00442064,2609.1,2609.0,4.06269]
[1724298370681,0.00573987,2609.5,2609.2,0.22987]
[1724298370881,0.00573987,2609.5,2609.3,2.5624]
[1724298371585,0.00943358,2609.5,2609.3,2.5624]
[1724298371975,0.00943358,2609.5,2609.3,6.3944]
[1724298372175,0.00943358,2609.5,2609.3,6.62426]
[1724298372381,0.00943358,2609.5,2609.3,6.3944]
[1724298372684,0.00943358,2609.5,2609.3,6.62426]
[1724298372883,0.00943358,2609.5,2609.4,4.06185]
[1724298373080,0.00943358,2609.5,2609.4,8.2516]
[1724298373477,0.00943358,2609.5,2609.4,8.48145]
[1724298374872,0.00943358,2609.5,2609.4,8.2516]
[1724298375282,0.00943358,2609.5,2609.4,8.48145]
[1724298375982,0.00943358,2609.5,2609.4,13.48145]
[1724298376186,0.00943358,2609.5,2609.4,8.48145]
[1724298376375,0.00943358,2609.5,2609.4,13.48145]
[1724298377382,0.00943358,2609.5,2609.4,10.27365]
[1724298377586,0.00943358,2609.5,2609.4,13.48145]
[1724298380682,1.2179,2610.1,2609.9,0.2298]
[1724298380892,0.22978,2610.3,2609.7,3.2078]
[1724298381096,0.22978,2610.3,2609.9,0.2298]
[1724298381290,0.22978,2610.3,2610.0,0.2298]
[1724298381702,0.22978,2610.2,2609.8,2.5757]
[1724298381992,0.22981,2609.9,2609.8,0.00575098]
[1724298382995,3.99661,2609.9,2609.8,0.00575098]
[1724298383298,7.82861,2609.9,2609.8,0.00575098]
[1724298383491,3.7668,2609.9,2609.8,0.00575098]
[1724298383792,3.99661,2609.9,2609.8,0.00575098]
[1724298384400,7.82861,2609.9,2609.8,0.00575098]
[1724298386093,7.5988,2609.9,2609.8,0.00575098]
[1724298386495,7.82861,2609.9,2609.8,0.00575098]
[1724298389797,0.22983,2609.7,2609.1,7.62367]
[1724298389992,3.99661,2609.9,2609.1,7.3938]
[1724298390191,3.99661,2609.9,2609.5,3.2078]
[1724298390393,0.22982,2609.8,2609.5,3.2078]
[1724298390589,0.22982,2609.8,2609.2,3.43767]
[1724298390787,0.22982,2609.8,2609.2,0.22987]
[1724298390988,0.22982,2609.8,2609.2,0.23562098]
[1724298392690,0.22982,2609.8,2609.3,0.22986]
[1724298392999,3.99661,2609.9,2609.3,0.22986]
[1724298393300,3.7668,2609.9,2609.4,1.2316]
[1724298393492,7.9546,2609.9,2609.2,0.23562098]
[1724298393693,0.22982,2609.8,2609.2,0.23562098]
[1724298393893,0.64982,2609.8,2609.2,0.23562098]
[1724298394497,0.64982,2609.8,2609.3,0.22986]
[1724298394696,3.7668,2609.9,2609.3,0.22986]
[1724298395001,0.22983,2609.7,2609.2,0.23562098]
[1724298396307,0.22983,2609.7,2609.2,0.00575098]
[1724298396502,3.2078,2609.6,2609.2,0.00575098]
[1724298396695,5.9578,2609.6,2609.2,0.00575098]
[1724298396998,0.22986,2609.4,2609.2,0.00575098]
[1724298397199,2.4351,2609.3,2609.2,0.00575098]
[1724298404404,1.2592,2609.5,2609.2,0.00575098]
[1724298405105,1.48904,2609.5,2609.2,0.00575098]
[1724298406505,1.2592,2609.5,2609.2,0.00575098]
[1724298408412,1.38,2609.4,2609.2,0.00575098]
[1724298409010,1.38,2609.8,2609.5,0.22984]
[1724298409312,1.38,2609.8,2609.4,1.60985]
[1724298409511,0.22981,2609.9,2609.4,2.84965]
[1724298409512,1.38,2609.7,2609.4,2.84965]
[1724298409914,1.3074,2609.6,2609.4,1.46965]
[1724298410515,1.3074,2609.6,2609.4,1.2398]
[1724298413524,1.3074,2609.6,2609.4,1.46965]
[1724298413720,1.3074,2609.6,2609.4,2.6198]
[1724298414610,4.5878,2610.0,2609.6,0.22983]
[1724298414811,3.2078,2610.0,2609.8,1.38]
[1724298415009,2.5829,2610.2,2609.9,5.1528]
[1724298415220,2.5829,2610.2,2610.0,1.38]
[1724298416415,1.2029,2610.2,2609.9,3.7728]
[1724298419627,1.2029,2610.2,2609.8,3.43761]
[1724298419628,1.2029,2610.2,2609.8,3.2078]
[1724298419822,1.43268,2610.2,2609.9,1.2049]
[1724298420026,3.84408,2610.2,2609.9,1.2049]
[1724298420226,3.6143,2610.2,2609.9,1.2049]
[1724298420426,0.22979,2610.1,2609.5,10.09824]
[1724298420727,0.57448,2610.1,2609.5,4.186]
[1724298420926,0.99448,2610.1,2609.5,4.186]
[1724298421435,0.22981,2609.9,2609.5,4.186]
[1724298421828,1.225,2609.8,2609.5,4.186]
[1724298425528,0.22979,2610.1,2609.5,3.43764]
[1724298425732,1.42819,2610.1,2609.5,3.43764]
[1724298426732,1.1984,2610.1,2609.5,3.43764]
[1724298426934,1.1984,2610.1,2609.6,0.22983]
[1724298427325,1.42819,2610.1,2609.5,3.43764]
[1724298427833,1.1984,2610.1,2609.5,3.43764]
[1724298428328,1.42819,2610.1,2609.5,3.43764]
[1724298428731,1.1984,2610.1,2609.5,3.43764]
[1724298428934,1.42819,2610.1,2609.5,3.43764]
[1724298429128,1.1984,2610.1,2609.5,3.43764]
[1724298429340,1.42819,2610.1,2609.5,3.43764]
[1724298429533,1.1984,2610.1,2609.3,3.6795]
[1724298429839,0.22981,2609.9,2609.3,3.90936]
[1724298430224,1.1984,2610.1,2609.3,3.6795]
[1724298430431,0.22981,2609.9,2609.3,3.6795]
[1724298430632,0.22981,2609.9,2609.3,3.90936]
[1724298431938,0.22982,2609.8,2609.3,3.90936]
[1724298432323,1.3007,2609.7,2609.3,3.90936]
[1724298432836,1.3007,2609.7,2609.4,0.22985]
[1724298433834,2.4114,2610.2,2609.6,0.22983]
[1724298433835,0.22979,2610.1,2609.6,0.22983]
[1724298434035,0.00857823,2610.3,2609.7,1.275]
[1724298434237,1.53904823,2610.3,2609.8,2.65221]
[1724298434739,1.53904823,2610.3,2609.8,2.4224]
[1724298435236,1.53904823,2610.3,2609.5,3.43764]
[1724298435237,0.2298,2610.0,2609.5,3.43764]
[1724298435444,3.704,2609.9,2609.6,2.5145]
[1724298436237,3.93381,2609.9,2609.6,2.5145]
[1724298437939,3.4376,2610.1,2609.6,2.74433]
[1724298438138,3.2078,2610.1,2609.6,2.5145]
[1724298438444,1.2936,2610.2,2609.8,3.43761]
[1724298439330,1.2936,2610.2,2609.8,3.2078]
[1724298439531,1.2936,2610.2,2609.8,3.43761]
[1724298440641,0.00857823,2610.3,2609.9,0.22981]
[1724298440842,0.00857823,2610.3,2610.0,2.4366]
[1724298441046,0.00857823,2610.3,2610.1,1.273]
[1724298441343,0.00857823,2610.3,2610.1,1.27706546]
[1724298441532,0.00857823,2610.3,2610.2,0.22978]
[1724298441733,0.00857823,2610.3,2610.2,4.06098]
[1724298446847,0.00857823,2610.3,2610.2,3.8312]
[1724298448240,0.00857823,2610.3,2610.1,4.48486546]
[1724298448241,0.22978,2610.2,2610.1,1.27706546]
[1724298450643,0.00857823,2610.3,2610.1,1.27706546]
[1724298450845,0.23835823,2610.3,2610.1,1.27706546]
[1724298452654,0.00857823,2610.3,2610.1,1.50685546]
[1724298452843,0.00857823,2610.3,2610.2,0.22978]
[1724298453445,0.00857823,2610.3,2610.1,1.50685546]
[1724298454253,0.00857823,2610.3,2610.2,0.22978]
[1724298456454,0.00857823,2610.3,2610.2,4.06098]
[1724298458051,0.00857823,2610.3,2610.2,3.8312]
[1724298458348,0.00857823,2610.3,2610.1,1.50685546]
[1724298458349,0.22978,2610.2,2610.1,0.00406546]
[1724298458538,2.74828,2610.2,2610.1,0.00406546]
[1724298459155,6.57948,2610.2,2610.1,0.00406546]
[1724298459553,7.15394,2610.2,2610.1,0.00406546]
[1724298459853,7.17526021,2610.2,2610.1,0.00406546]
[1724298460158,6.60080021,2610.2,2610.1,0.00406546]
[1724298460347,6.57948,2610.2,2610.1,0.00406546]
[1724298461249,6.6007538,2610.2,2610.1,0.00406546]
[1724298464755,6.57948,2610.2,2610.1,0.00406546]
[1724298465861,6.3497,2610.2,2610.1,0.00406546]
[1724298466155,2.5185,2610.2,2610.1,0.00406546]
[1724298466352,0.00857823,2610.3,2610.1,0.23385546]
[1724298466554,0.00857823,2610.3,2610.1,3.21186546]
[1724298466755,0.00857823,2610.3,2610.1,3.44165546]
[1724298467062,0.00857823,2610.3,2610.2,2.5399]
[1724298468349,0.00857823,2610.3,2610.2,1.2216]
[1724298472467,3.83977823,2610.3,2610.1,0.00406546]
[1724298472765,0.23834823,2610.3,2610.1,0.00406546]
[1724298473666,0.22978,2610.2,2610.1,0.00406546]
[1724298474859,4.06098,2610.2,2610.1,0.00406546]
[1724298476854,4.06098,2610.2,2609.6,1.2054]
[1724298476855,12.039,2610.2,2609.6,1.2054]
[1724298477058,6.99348789,2610.1,2609.6,1.2054]
[1724298477365,0.22981,2610.0,2609.6,1.2054]
[1724298477560,1.45561,2610.0,2609.6,1.2054]
[1724298478055,1.2258,2610.0,2609.6,1.20858536]
[1724298478253,1.2258,2610.0,2609.6,1.43841536]
[1724298479850,1.2258,2610.0,2609.7,0.22982]
[1724298482152,1.2258,2610.0,2609.6,1.43841536]
[1724298483670,1.2258,2610.0,2609.7,0.22982]
[1724298484564,1.2258,2610.0,2609.7,1.60982]
[1724298485273,1.2258,2610.0,2609.7,1.38]
[1724298485879,1.2258,2610.0,2609.7,1.60983]
[1724298488664,1.2258,2610.0,2609.8,1.60982]
[1724298488861,1.2258,2610.0,2609.9,1.308]
[1724298489065,1.2258,2610.0,2609.9,2.5272]
[1724298489874,2.58157823,2610.3,2609.9,2.757]